bitfinex/quotes_BTCUSD_20241111
["timestamp","ask_amount","ask_price","bid_price","bid_amount"]
[1731344402688,0.1784238,84186.0,84156.0,0.1784238]
[1731344402689,0.1784238,84186.0,84161.0,0.005]
[1731344403223,0.1784238,84186.0,84156.0,0.29836455]
[1731344403571,0.1784238,84186.0,84161.0,0.005]
[1731344403769,0.29836455,84171.0,84154.0,0.12338446]
[1731344403923,0.11994075,84171.0,84155.0,0.1784238]
[1731344404126,0.11994075,84171.0,84154.0,0.04468446]
[1731344404127,0.11994075,84171.0,84156.0,0.1784238]
[1731344404492,0.1784238,84186.0,84156.0,0.1784238]
[1731344405193,0.1784238,84186.0,84156.0,0.1834238]
[1731344405526,0.1784238,84186.0,84161.0,0.005]
[1731344405744,0.1784238,84186.0,84162.0,0.0456]
[1731344406405,0.1784238,84186.0,84163.0,0.0763]
[1731344407724,0.1784238,84196.0,84170.0,0.005]
[1731344407875,0.1784238,84185.0,84171.0,0.005]
[1731344408861,0.1784238,84184.0,84171.0,0.005]
[1731344409123,0.1784238,84196.0,84171.0,0.005]
[1731344409357,0.1784238,84187.0,84171.0,0.005]
[1731344409587,0.1784238,84187.0,84169.0,0.005]
[1731344409588,0.11994075,84186.0,84167.0,0.005]
[1731344409794,0.11994075,84186.0,84166.0,0.1784238]
[1731344410029,0.1784238,84185.0,84153.0,0.0773]
[1731344410264,0.1784238,84185.0,84160.0,0.1784238]
[1731344410265,0.41178874,84178.0,84160.0,0.1784238]
[1731344410493,0.14294075,84177.0,84160.0,0.1784238]
[1731344410727,0.023,84173.0,84160.0,0.1784238]
[1731344410965,0.11994075,84174.0,84160.0,0.1784238]
[1731344411640,0.11994075,84174.0,84160.0,0.2263238]
[1731344411882,0.1784238,84173.0,84160.0,0.0479]
[1731344412087,0.11994075,84172.0,84154.0,0.04489959]
[1731344412564,0.11994075,84172.0,84151.0,0.1784238]
[1731344413381,0.1784238,84171.0,84151.0,0.22154924]
[1731344413619,0.11994075,84170.0,84151.0,0.22154924]
[1731344414192,0.11994075,84170.0,84160.0,0.1784238]
[1731344414426,0.11994075,84170.0,84151.0,0.22154924]
[1731344414427,0.1784238,84169.0,84152.0,0.005]
[1731344414634,0.11994075,84169.0,84151.0,0.22154924]
[1731344414835,0.11994075,84168.0,84151.0,0.22154924]
[1731344415066,0.1784238,84176.0,84151.0,0.22654924]
[1731344415261,0.11994075,84175.0,84151.0,0.22654924]
[1731344416977,0.11994075,84175.0,84153.0,0.005]
[1731344417176,0.11994075,84175.0,84154.0,0.0786]
[1731344418297,0.1784238,84185.0,84160.0,0.1784238]
[1731344418500,0.11994075,84184.0,84160.0,0.1834238]
[1731344418759,0.001696,84176.0,84160.0,0.1834238]
[1731344419365,0.1784238,84175.0,84160.0,0.005]
[1731344419573,0.001696,84176.0,84170.0,0.1784238]
[1731344419785,0.001696,84176.0,84161.0,0.1834238]
[1731344419786,0.001696,84176.0,84168.0,0.005]
[1731344420194,0.001696,84176.0,84172.0,0.005]
[1731344421001,0.1784238,84208.0,84145.0,0.01]
[1731344421002,0.1784238,84208.0,84175.0,0.42178874]
[1731344421210,0.1784238,84193.0,84192.0,0.0762]
[1731344421481,0.1784238,84208.0,84192.0,0.0762]
[1731344421482,0.1784238,84208.0,84199.0,0.005]
[1731344421681,0.1784238,84208.0,84185.0,0.1784238]
[1731344421881,0.1784238,84208.0,84186.0,0.11994075]
[1731344422844,0.005,84209.0,84186.0,0.11994075]
[1731344422845,0.005,84215.0,84194.0,0.1784238]
[1731344423043,0.1784238,84216.0,84195.0,0.12231569]
[1731344423044,0.1784238,84204.0,84195.0,0.12231569]
[1731344423363,0.005,84214.0,84108.0,0.2627]
[1731344423364,0.005,84207.0,84189.0,0.180799]
[1731344423563,0.005,84214.0,84189.0,0.1784238]
[1731344423764,0.1784238,84206.0,84189.0,0.1784238]
[1731344423995,0.005,84213.0,84199.0,0.1784238]
[1731344424207,0.005,84213.0,84200.0,0.00237501]
[1731344424426,0.1834238,84214.0,84190.0,0.11994075]
[1731344424629,0.1834238,84214.0,84198.0,0.1784238]
[1731344424841,0.1834238,84214.0,84199.0,0.1255]
[1731344425012,0.005,84213.0,84191.0,0.1784238]
[1731344425294,0.005,84211.0,84192.0,0.11994075]
[1731344425492,0.0002,84229.0,84190.0,0.0762]
[1731344425493,0.005,84199.0,84193.0,0.1784238]
[1731344425711,0.005,84199.0,84190.0,0.0762]
[1731344425928,0.1784238,84213.0,84186.0,0.04328281]
[1731344425929,0.005,84187.0,84186.0,0.04328281]
[1731344426301,0.005,84187.0,84175.0,0.0814]
[1731344426903,0.005,84187.0,84176.0,0.22268351]
[1731344427297,0.005,84187.0,84176.0,0.04425971]
[1731344427663,0.005,84197.0,84177.0,0.29836455]
[1731344427888,0.1784238,84196.0,84177.0,0.29836455]
[1731344428465,0.005,84210.0,84186.0,0.1784238]
[1731344428792,0.1784238,84200.0,84187.0,0.16934075]
[1731344428937,0.005,84204.0,84197.0,0.1784238]
[1731344429146,0.005,84204.0,84188.0,0.1784238]
[1731344429318,0.005,84204.0,84188.0,0.18079903]
[1731344429520,0.005,84193.0,84189.0,0.1784238]
[1731344429752,0.005,84193.0,84187.0,0.0494]
[1731344429904,0.005,84182.0,84175.0,0.0814]
[1731344430114,0.005,84170.0,84162.0,0.0791]
[1731344430979,0.005,84177.0,84163.0,0.01217954]
[1731344431211,0.005,84177.0,84163.0,0.002376]
[1731344431538,0.005,84185.0,84164.0,0.11994075]
[1731344431766,0.1784238,84181.0,84164.0,0.11994075]
[1731344431970,0.005,84185.0,84164.0,0.11994075]
[1731344431971,0.005,84185.0,84165.0,0.0023758]
[1731344432098,0.001696,84187.0,84166.0,0.53172949]
[1731344432302,0.1784238,84181.0,84162.0,0.1227863]
[1731344432500,0.005,84182.0,84163.0,0.29836455]
[1731344432863,0.005,84170.0,84162.0,0.1227863]
[1731344432989,0.1784238,84178.0,84162.0,0.1227863]
[1731344432990,0.005,84168.0,84162.0,0.1227863]
[1731344433201,0.001447,84163.0,84162.0,0.0436863]
[1731344433418,0.001696,84187.0,84152.0,0.1784238]
[1731344433419,0.001447,84169.0,84152.0,0.1784238]
[1731344434079,0.001447,84169.0,84153.0,0.00237622]
[1731344434307,0.1784238,84181.0,84153.0,0.00237622]
[1731344434308,0.001447,84177.0,84154.0,0.11994075]
[1731344434516,0.001447,84177.0,84162.0,0.1255]
[1731344434722,0.1784238,84172.0,84162.0,0.1255]
[1731344434951,0.001447,84177.0,84162.0,0.1255]
[1731344435161,0.1784238,84172.0,84162.0,0.1255]
[1731344435436,0.001447,84165.0,84152.0,0.1784238]
[1731344435603,0.1784238,84171.0,84152.0,0.1784238]
[1731344435604,0.001447,84160.0,84152.0,0.1784238]
[1731344436202,0.00109056,84160.0,84152.0,0.1784238]
[1731344436399,0.00109056,84160.0,84151.0,0.12998581]
[1731344438581,0.00109056,84168.0,84153.0,0.1784238]
[1731344438793,0.1784238,84181.0,84153.0,0.1784238]
[1731344438794,0.00109056,84174.0,84154.0,0.122317]
[1731344439009,0.1784238,84172.0,84154.0,0.122317]
[1731344439236,0.1784238,84172.0,84154.0,0.29836455]
[1731344440298,0.1784238,84172.0,84151.0,0.12998581]
[1731344440299,0.00109056,84166.0,84151.0,0.12998581]
[1731344440598,0.00109056,84166.0,84155.0,0.1784238]
[1731344440963,0.00109056,84166.0,84151.0,0.12998581]
[1731344441336,0.00109056,84166.0,84152.0,0.1784238]
[1731344441543,0.00109056,84163.0,84151.0,0.12998581]
[1731344441763,0.00109056,84160.0,84151.0,0.12998581]
[1731344441998,0.1784238,84172.0,84151.0,0.12998581]
[1731344441999,0.00109056,84152.0,84151.0,0.00645372]
[1731344442197,0.14403131,84152.0,84151.0,0.00645372]
[1731344442400,0.21923131,84152.0,84151.0,0.00645372]
[1731344443563,0.14182631,84152.0,84151.0,0.00645372]
[1731344443792,0.11882631,84152.0,84151.0,0.00645372]
[1731344444193,0.14182631,84152.0,84151.0,0.00645372]
[1731344445389,0.14682631,84152.0,84151.0,0.00645372]
[1731344445655,0.033,84151.0,84150.0,0.000845]
[1731344445861,0.028,84142.0,84141.0,0.000845]
[1731344446032,0.14794075,84142.0,84141.0,0.000845]
[1731344446829,0.22584075,84142.0,84141.0,0.000845]
[1731344447200,0.22417672,84142.0,84141.0,0.000845]
[1731344448421,0.14127672,84142.0,84141.0,0.000845]
[1731344449455,0.04501554,84159.0,84141.0,0.000845]
[1731344449456,0.005,84159.0,84141.0,0.000845]
[1731344449653,0.1784238,84154.0,84141.0,0.000845]
[1731344449855,0.11994075,84153.0,84141.0,0.000845]
[1731344451008,0.023,84152.0,84141.0,0.000845]
[1731344451214,0.11994075,84151.0,84141.0,0.000845]
[1731344451365,0.023,84150.0,84142.0,0.1784238]
[1731344451566,0.005,84170.0,84142.0,0.1784238]
[1731344451771,0.1784238,84163.0,84143.0,0.0758]
[1731344451955,0.11994075,84162.0,84144.0,0.1784238]
[1731344452974,0.023,84160.0,84144.0,0.1784238]
[1731344453148,0.11994075,84159.0,84144.0,0.1784238]
[1731344454243,0.1784238,84172.0,84144.0,0.18080066]
[1731344454373,0.11994075,84171.0,84144.0,0.18080066]
[1731344454782,0.1784238,84170.0,84144.0,0.18080066]
[1731344455026,0.11994075,84169.0,84144.0,0.18080066]
[1731344455207,0.1784238,84170.0,84144.0,0.18080066]
[1731344455208,0.005,84189.0,84153.0,0.1784238]
[1731344455420,0.1784238,84170.0,84145.0,0.11994075]
[1731344455616,0.11994075,84174.0,84153.0,0.1784238]
[1731344455878,0.1784238,84172.0,84153.0,0.1784238]
[1731344456255,0.11994075,84174.0,84153.0,0.1784238]
[1731344456460,0.11994075,84174.0,84154.0,0.04747633]
[1731344456751,0.1784238,84193.0,84154.0,0.04747633]
[1731344456752,0.1784238,84180.0,84155.0,0.0831]
[1731344456973,0.1784238,84180.0,84156.0,0.11994075]
[1731344457153,0.1784238,84193.0,84168.0,0.13]
[1731344457297,0.1784238,84179.0,84168.0,0.13]
[1731344457944,0.1784238,84193.0,84168.0,0.13]
[1731344458371,0.023,84173.0,84155.0,0.0817]
[1731344458542,0.11994075,84172.0,84162.0,0.1784238]
[1731344458746,0.1784238,84193.0,84162.0,0.1784238]
[1731344459144,0.1784238,84193.0,84155.0,0.0817]
[1731344459390,0.1784238,84193.0,84156.0,0.11994075]
[1731344459816,0.1784238,84184.0,84156.0,0.11994075]
[1731344460698,0.1784238,84174.0,84155.0,0.0817]
[1731344460911,0.11994075,84173.0,84155.0,0.0817]
[1731344461149,0.023,84162.0,84154.0,0.04490109]
[1731344461356,0.023,84160.0,84141.0,0.000845]
[1731344461588,0.11994075,84159.0,84153.0,0.1784238]
[1731344461808,0.023,84158.0,84141.0,0.000845]
[1731344462017,0.023,84156.0,84141.0,0.000845]
[1731344462218,0.023,84150.0,84144.0,0.1784238]
[1731344462395,0.023,84148.0,84141.0,0.000845]
[1731344462606,0.11994075,84147.0,84141.0,0.000845]
[1731344462925,0.023,84146.0,84141.0,0.000845]
[1731344463062,0.11994075,84145.0,84141.0,0.000845]
[1731344463672,0.59021254,84174.0,84141.0,0.000845]
[1731344463673,0.1784238,84174.0,84142.0,0.1784238]
[1731344463873,0.1784238,84174.0,84143.0,0.13187653]
[1731344463874,0.1784238,84164.0,84143.0,0.13187653]
[1731344464081,0.2563238,84193.0,84143.0,0.13187653]
[1731344464082,0.1784238,84198.0,84156.0,0.41178874]
[1731344464338,0.1784238,84174.0,84158.0,0.123]
[1731344464559,0.1784238,84189.0,84170.0,0.123]
[1731344464761,0.1784238,84188.0,84172.0,0.042]
[1731344464980,0.1784238,84198.0,84179.0,0.005]
[1731344465194,0.1784238,84198.0,84181.0,0.123]
[1731344465403,0.1784238,84207.0,84182.0,0.11994075]
[1731344466499,0.1784238,84207.0,84181.0,0.123]
[1731344466879,0.1784238,84207.0,84182.0,0.00237544]
[1731344467134,0.1784238,84207.0,84183.0,0.11994075]
[1731344467340,0.1784238,84207.0,84186.0,0.005]
[1731344467491,0.1784238,84207.0,84186.0,0.12731596]
[1731344467693,0.1784238,84207.0,84186.0,0.12494075]
[1731344467919,0.1784238,84207.0,84186.0,0.12731596]
[1731344468491,0.1784238,84207.0,84186.0,0.12494075]
[1731344469149,0.000673,84221.0,84189.0,0.005]
[1731344469375,0.17246043,84217.0,84190.0,0.38264075]
[1731344469590,0.17246043,84217.0,84193.0,0.1784238]
[1731344469789,0.000673,84221.0,84194.0,0.11994075]
[1731344470600,0.000673,84221.0,84195.0,0.00237499]
[1731344470813,0.000673,84221.0,84196.0,0.11994075]
[1731344471219,0.000673,84221.0,84202.0,0.1784238]
[1731344472668,0.00984051,84220.0,84211.0,0.1784238]
[1731344472952,0.00984051,84220.0,84212.0,0.11994075]
[1731344473173,0.00073119,84220.0,84212.0,0.11994075]
[1731344474125,0.00073119,84220.0,84211.0,0.1187]
[1731344474550,0.0154006,84222.0,84211.0,0.1187]
[1731344474916,0.0154006,84222.0,84211.0,0.16302798]
[1731344475096,0.0154006,84222.0,84214.0,0.1784238]
[1731344475935,0.0154006,84222.0,84215.0,0.11994075]
[1731344476701,0.00076079,84222.0,84215.0,0.11994075]
[1731344477384,0.00076079,84222.0,84216.0,0.1784238]
[1731344477385,0.00245679,84222.0,84216.0,0.1784238]
[1731344477587,0.00245679,84222.0,84215.0,0.11994075]
[1731344477785,0.00245679,84222.0,84212.0,0.2627]
[1731344477989,0.00245679,84222.0,84214.0,0.1784238]
[1731344478645,0.00245679,84222.0,84212.0,0.2627]
[1731344479453,0.00245679,84222.0,84214.0,0.1784238]
[1731344479658,0.00245679,84222.0,84215.0,0.11994075]
[1731344479860,0.06737865,84223.0,84215.0,0.11994075]
[1731344481660,0.06737865,84223.0,84211.0,0.16302798]
[1731344481865,0.06737865,84223.0,84216.0,0.1784238]
[1731344482118,0.06737865,84223.0,84211.0,0.16302798]
[1731344482119,0.1873194,84223.0,84211.0,0.16302798]
[1731344482311,0.1873194,84223.0,84215.0,0.1784238]
[1731344482545,0.1873194,84223.0,84211.0,0.16302798]
[1731344482753,0.1873194,84223.0,84212.0,0.1784238]
[1731344483181,0.1873194,84223.0,84213.0,0.00237494]
[1731344483182,0.06737865,84223.0,84213.0,0.00237494]
[1731344483405,0.05985505,84223.0,84218.0,0.41178874]
[1731344483651,0.05297316,84223.0,84220.0,0.0755]
[1731344483823,0.05297316,84223.0,84221.0,0.11994075]
[1731344486163,0.05297316,84223.0,84220.0,0.0755]
[1731344486755,0.05297316,84223.0,84209.0,0.0776]
[1731344486968,0.05297316,84223.0,84213.0,0.1784238]
[1731344487627,0.05297316,84223.0,84211.0,0.1187]
[1731344487628,0.05297316,84223.0,84212.0,0.1784238]
[1731344488035,0.05297316,84223.0,84211.0,0.1187]
[1731344488281,0.1784238,84220.0,84211.0,0.16361936]
[1731344488509,0.11994075,84219.0,84207.0,0.1784238]
[1731344488704,0.023,84208.0,84193.0,0.1784238]
[1731344488901,0.023,84208.0,84207.0,0.1784238]
[1731344489122,0.023,84208.0,84193.0,0.1784238]
[1731344489409,0.028,84199.0,84194.0,0.1784238]
[1731344490079,0.005,84209.0,84167.0,0.1784238]
[1731344490080,0.028,84195.0,84167.0,0.1784238]
[1731344490290,0.023,84188.0,84186.0,0.1784238]
[1731344490474,0.14294075,84187.0,84186.0,0.1784238]
[1731344490678,0.023,84186.0,84176.0,0.1784238]
[1731344490817,0.023,84186.0,84185.0,0.1784238]
[1731344491041,0.14294075,84186.0,84176.0,0.1784238]
[1731344491256,0.11994075,84185.0,84176.0,0.1784238]
[1731344491456,0.023,84184.0,84176.0,0.1784238]
[1731344491671,0.0757,84205.0,84176.0,0.1784238]
[1731344491851,0.01176901,84232.0,84176.0,0.1784238]
[1731344491852,0.023,84203.0,84177.0,0.41416478]
[1731344492048,0.11994075,84202.0,84182.0,0.0776]
[1731344492337,0.11994075,84202.0,84185.0,0.1784238]
[1731344492468,0.05466716,84223.0,84186.0,0.00237557]
[1731344492774,0.11994075,84215.0,84185.0,0.1784238]
[1731344493173,0.11994075,84215.0,84194.0,0.1784238]
[1731344493372,0.1784238,84213.0,84182.0,0.0776]
[1731344493619,0.11994075,84212.0,84195.0,0.1784238]
[1731344493817,0.023,84211.0,84195.0,0.1784238]
[1731344494024,0.023,84209.0,84195.0,0.1784238]
[1731344494227,0.11994075,84208.0,84195.0,0.1784238]
[1731344494447,0.11994075,84208.0,84186.0,0.1784238]
[1731344494574,0.1784238,84221.0,84202.0,0.005]
[1731344494794,0.11994075,84220.0,84202.0,0.005]
[1731344495019,0.11994075,84220.0,84210.0,0.002]
[1731344495421,0.023,84219.0,84205.0,0.1784238]
[1731344495643,0.023,84217.0,84196.0,0.1784238]
[1731344495851,0.023,84217.0,84206.0,0.1784238]
[1731344495852,0.023,84215.0,84206.0,0.1784238]
[1731344496051,0.023,84213.0,84206.0,0.1784238]
[1731344496254,0.023,84211.0,84206.0,0.1784238]
[1731344496523,0.023,84209.0,84197.0,0.005]
[1731344496729,0.023,84207.0,84197.0,0.005]
[1731344496926,0.023,84207.0,84205.0,0.1784238]
[1731344497135,0.023,84207.0,84203.0,0.005]
[1731344497829,0.1784238,84239.0,84213.0,0.002]
[1731344497974,0.29836455,84238.0,84223.0,0.002]
[1731344498189,0.11994075,84238.0,84223.0,0.002]
[1731344498590,0.11994075,84238.0,84224.0,0.1784238]
[1731344498802,0.11994075,84238.0,84223.0,0.002]
[1731344499044,0.11994075,84230.0,84215.0,0.1784238]
[1731344499397,0.11994075,84230.0,84226.0,0.1784238]
[1731344499526,0.023,84229.0,84217.0,0.1784238]
[1731344499724,0.11994075,84224.0,84206.0,0.22338582]
[1731344500011,0.023,84223.0,84215.0,0.1784238]
[1731344500237,0.11994075,84222.0,84215.0,0.1784238]
[1731344500457,0.19833164,84254.0,84216.0,0.005]
[1731344500639,0.29836455,84244.0,84216.0,0.005]
[1731344500813,0.11994075,84244.0,84219.0,0.002]
[1731344501048,0.11994075,84239.0,84215.0,0.1784238]
[1731344501185,0.11994075,84239.0,84224.0,0.1784238]
[1731344501807,0.11994075,84231.0,84225.0,0.1784238]
[1731344502056,0.023,84230.0,84225.0,0.1784238]
[1731344502270,0.11994075,84229.0,84225.0,0.1784238]
[1731344502478,0.023,84228.0,84225.0,0.1784238]
[1731344502681,0.023,84226.0,84215.0,0.1784238]
[1731344503012,0.023,84224.0,84215.0,0.1784238]
[1731344503288,0.023,84222.0,84216.0,0.1784238]
[1731344503526,0.11994075,84221.0,84216.0,0.1784238]
[1731344503714,0.023,84220.0,84216.0,0.1784238]
[1731344503844,0.023,84218.0,84216.0,0.1784238]
[1731344504037,0.023,84217.0,84207.0,0.005]
[1731344504243,0.023,84217.0,84215.0,0.1784238]
[1731344504443,0.023,84217.0,84207.0,0.005]
[1731344504843,0.023,84215.0,84207.0,0.005]
[1731344505054,0.14294075,84215.0,84208.0,0.1784238]
[1731344505665,0.14294075,84215.0,84203.0,0.005]
[1731344505885,0.001694,84238.0,84205.0,0.1784238]
[1731344505886,0.023,84213.0,84205.0,0.1784238]
[1731344506154,0.01429533,84211.0,84198.0,0.13126039]
[1731344506394,0.11994075,84210.0,84198.0,0.13126039]
[1731344506596,0.11994075,84210.0,84191.0,0.007]
[1731344506791,0.11994075,84210.0,84195.0,0.1784238]
[1731344507108,0.11994075,84210.0,84196.0,0.1784238]
[1731344507318,0.11994075,84210.0,84196.0,0.1834238]
[1731344507749,0.11994075,84210.0,84201.0,0.002]
[1731344508145,0.023,84209.0,84196.0,0.1834238]
[1731344508294,0.11994075,84208.0,84200.0,0.005]
[1731344508508,0.023,84207.0,84201.0,0.005]
[1731344508698,0.023,84205.0,84201.0,0.00499985]
[1731344508923,0.1784238,84235.0,84206.0,0.002]
[1731344509089,0.023,84230.0,84206.0,0.002]
[1731344509286,0.05406316,84238.0,84211.0,0.00499985]
[1731344509287,0.11994075,84229.0,84211.0,0.00499985]
[1731344509509,0.001694,84238.0,84226.0,0.002]
[1731344509719,0.11994075,84237.0,84226.0,0.002]
[1731344510154,0.11994075,84237.0,84227.0,0.1784238]
[1731344510657,0.11994075,84237.0,84221.0,0.00499985]
[1731344510868,0.11994075,84237.0,84226.0,0.1784238]
[1731344510869,0.023,84236.0,84226.0,0.1784238]
[1731344511105,0.023,84234.0,84221.0,0.00499985]
[1731344511305,0.023,84232.0,84219.0,0.00499985]
[1731344511502,0.023,84230.0,84217.0,0.1784238]
[1731344511702,0.023,84228.0,84219.0,0.00499985]
[1731344511911,0.023,84226.0,84219.0,0.00499985]
[1731344512091,0.023,84224.0,84219.0,0.00499985]
[1731344512319,0.023,84222.0,84219.0,0.00499985]
[1731344512682,0.001694,84238.0,84217.0,0.1784238]
[1731344512897,0.11994075,84237.0,84219.0,0.00499985]
[1731344513071,0.11994075,84237.0,84225.0,0.002]
[1731344513319,0.11994075,84237.0,84223.0,0.002]
[1731344513537,0.11994075,84237.0,84220.0,0.002]
[1731344514043,0.023,84236.0,84219.0,0.00499985]
[1731344514238,0.11994075,84235.0,84219.0,0.00499985]
[1731344514456,0.023,84234.0,84217.0,0.1784238]
[1731344514651,0.023,84232.0,84219.0,0.00499985]
[1731344514860,0.023,84230.0,84219.0,0.00499985]
[1731344515084,0.11994075,84229.0,84226.0,0.1784238]
[1731344515296,0.11994075,84229.0,84219.0,0.00499985]
[1731344515297,0.023,84228.0,84219.0,0.00499985]
[1731344515502,0.023,84226.0,84218.0,0.00499985]
[1731344515711,0.023,84224.0,84219.0,0.00499985]
[1731344515921,0.023,84223.0,84219.0,0.00699985]
[1731344516329,0.001694,84236.0,84229.0,0.00499985]
[1731344516562,0.11994075,84235.0,84229.0,0.00499985]
[1731344516986,0.11994075,84235.0,84224.0,0.00499985]
[1731344517190,0.11994075,84235.0,84230.0,0.1784238]
[1731344517392,0.11994075,84235.0,84228.0,0.002]
[1731344517758,0.11994075,84235.0,84229.0,0.1784238]
[1731344517759,0.023,84234.0,84229.0,0.1784238]
[1731344517986,0.001694,84236.0,84229.0,0.1784238]
[1731344517987,0.023,84232.0,84229.0,0.1784238]
[1731344518219,0.11994075,84231.0,84229.0,0.1784238]
[1731344518357,0.023,84230.0,84229.0,0.1784238]
[1731344518658,0.001694,84236.0,84229.0,0.1784238]
[1731344518878,0.001694,84236.0,84224.0,0.00499985]
[1731344518879,0.14294075,84235.0,84224.0,0.00499985]
[1731344519073,0.14294075,84235.0,84226.0,0.1784238]
[1731344519851,0.14294075,84235.0,84224.0,0.00499985]
[1731344519852,0.14294075,84235.0,84224.0,0.0477876]
[1731344520020,0.14294075,84235.0,84228.0,0.1784238]
[1731344520477,0.14294075,84235.0,84224.0,0.00499985]
[1731344520628,0.14294075,84235.0,84230.0,0.1784238]
[1731344520832,0.14294075,84235.0,84223.0,0.00499985]
[1731344521068,0.14294075,84235.0,84226.0,0.1784238]
[1731344522113,0.14294075,84235.0,84217.0,0.1784238]
[1731344522331,0.14294075,84235.0,84221.0,0.00499985]
[1731344522693,0.14291992,84235.0,84226.0,0.1784238]
[1731344523149,0.14291992,84235.0,84227.0,0.1784238]
[1731344523357,0.001694,84236.0,84230.0,0.00499985]
[1731344523614,0.001694,84236.0,84235.0,0.09449985]
[1731344523823,0.001694,84236.0,84235.0,0.14389985]
[1731344524060,8e-05,84267.0,84256.0,0.1339]
[1731344524275,0.12061375,84257.0,84256.0,0.1339]
[1731344524490,0.12061375,84257.0,84256.0,0.1319]
[1731344524689,0.000673,84257.0,84256.0,0.1319]
[1731344525338,0.000673,84257.0,84256.0,0.14189985]
[1731344525554,0.000673,84257.0,84256.0,0.13889985]
[1731344525768,0.000673,84257.0,84256.0,0.1319]
[1731344525983,0.000673,84257.0,84256.0,0.1339]
[1731344526190,0.000673,84257.0,84256.0,0.1319]
[1731344526406,0.000673,84257.0,84256.0,0.13889985]
[1731344526806,0.000673,84257.0,84256.0,0.14389985]
[1731344532875,0.000673,84257.0,84256.0,0.14627332]
[1731344533098,8e-05,84267.0,84258.0,0.00699985]
[1731344533305,8e-05,84267.0,84258.0,0.1319406]
[1731344533520,8e-05,84267.0,84258.0,0.2570406]
[1731344533741,8e-05,84267.0,84258.0,0.13709985]
[1731344534178,8e-05,84267.0,84258.0,0.29829141]
[1731344534389,8e-05,84267.0,84258.0,0.2959181]
[1731344534600,0.0002,84269.0,84268.0,0.01199985]
[1731344534804,0.0002,84269.0,84268.0,0.54372934]
[1731344536214,0.0002,84269.0,84268.0,0.01199985]
[1731344536413,0.0002,84269.0,84268.0,0.06062608]
[1731344536853,0.0002,84269.0,84268.0,0.01199985]
[1731344537383,0.0002,84269.0,84267.0,0.002]
[1731344537596,0.0002,84269.0,84268.0,0.1784238]
[1731344537802,0.0002,84269.0,84268.0,0.007]
[1731344538023,0.0002,84269.0,84268.0,0.01199985]
[1731344538240,0.0002,84269.0,84268.0,0.01437315]
[1731344538611,0.0002,84269.0,84268.0,0.3600644]
[1731344538817,0.0002,84269.0,84268.0,0.2593406]
[1731344539152,0.0002,84269.0,84268.0,0.13939985]
[1731344539694,0.0002,84269.0,84268.0,0.00499985]
[1731344540028,0.0002,84269.0,84267.0,0.04847238]
[1731344540266,0.0002,84269.0,84268.0,0.00699985]
[1731344540512,0.0002,84269.0,84268.0,0.00499985]
[1731344540731,0.0002,84269.0,84266.0,0.04917427]
[1731344540943,0.001894,84269.0,84266.0,0.04917427]
[1731344541163,0.001894,84269.0,84268.0,0.00499985]
[1731344541366,0.001894,84269.0,84261.0,0.002]
[1731344541517,0.14294075,84268.0,84263.0,0.00499985]
[1731344541902,0.023,84268.0,84263.0,0.00499985]
[1731344542085,0.11994075,84267.0,84263.0,0.00499985]
[1731344542289,0.023,84266.0,84257.0,0.0489195]
[1731344542530,0.023,84264.0,84252.0,0.1784238]
[1731344542888,0.023,84264.0,84255.0,0.002]
[1731344542889,0.023,84262.0,84255.0,0.002]
[1731344543093,0.023,84260.0,84252.0,0.1784238]
[1731344543287,0.023,84258.0,84253.0,0.1784238]
[1731344543443,0.001894,84269.0,84255.0,0.005]
[1731344543659,0.023,84268.0,84255.0,0.007]
[1731344543875,0.023,84268.0,84260.0,0.00499985]
[1731344545169,0.023,84268.0,84259.0,0.00499985]
[1731344545302,0.023,84268.0,84264.0,0.1784238]
[1731344545530,0.001894,84269.0,84260.0,0.005]
[1731344545740,0.001894,84269.0,84264.0,0.005]
[1731344545951,0.001894,84269.0,84268.0,0.00499985]
[1731344547268,0.001894,84269.0,84268.0,0.00699985]
[1731344547481,0.001894,84269.0,84268.0,0.01199985]
[1731344548313,0.0150007,84282.0,84268.0,0.01199985]
[1731344548314,0.0150007,84282.0,84271.0,0.002]
[1731344548522,0.0150007,84282.0,84271.0,0.01199985]
[1731344549390,0.0150007,84282.0,84261.0,0.0471]
[1731344549608,0.0150007,84282.0,84268.0,0.00499985]
[1731344549828,0.0150007,84282.0,84271.0,0.002]
[1731344550034,0.0150007,84282.0,84268.0,0.00499985]
[1731344550668,0.0150007,84282.0,84267.0,0.007]
[1731344550669,0.0150007,84282.0,84271.0,0.00999985]
[1731344550862,0.0150007,84282.0,84271.0,0.01199985]
[1731344551331,0.0150007,84282.0,84271.0,0.00699985]
[1731344551500,0.0150007,84282.0,84271.0,0.01199985]
[1731344552142,0.01249217,84282.0,84281.0,0.002]
[1731344552144,0.00937242,84282.0,84281.0,0.007]
[1731344553407,0.00937242,84282.0,84281.0,0.005]
[1731344554273,0.00937242,84282.0,84281.0,0.05364323]
[1731344554477,0.00937242,84282.0,84281.0,0.005]
[1731344554685,0.00937242,84282.0,84280.0,0.00499985]
[1731344554686,0.00937242,84282.0,84280.0,0.04894616]
[1731344554887,0.00937242,84282.0,84279.0,0.00499985]
[1731344555108,0.023,84280.0,84276.0,0.00499985]
[1731344555341,0.023,84280.0,84272.0,0.002]
[1731344555342,0.023,84280.0,84273.0,0.00499985]
[1731344555556,0.023,84280.0,84276.0,0.1784238]
[1731344555844,0.023,84280.0,84273.0,0.00499985]
[1731344556081,0.023,84280.0,84276.0,0.00499985]
[1731344556257,0.023,84280.0,84271.0,0.00699985]
[1731344556466,0.023,84280.0,84274.0,0.18342365]
[1731344556671,0.023,84280.0,84271.0,0.00699985]
[1731344556878,0.14294075,84280.0,84271.0,0.04868808]
[1731344557098,0.13517207,84279.0,84267.0,0.000847]
[1731344557303,0.023,84278.0,84267.0,0.04961682]
[1731344557574,0.11994075,84277.0,84267.0,0.04961682]
[1731344557913,0.023,84276.0,84270.0,0.002]
[1731344558313,0.023,84276.0,84267.0,0.04961682]
[1731344560495,0.023,84274.0,84267.0,0.000847]
[1731344560720,0.023,84272.0,84268.0,0.1784238]
[1731344560931,0.00937242,84282.0,84268.0,0.1784238]
[1731344561135,0.023,84280.0,84268.0,0.1784238]